[Event "January 2 Late 2024"]
[Site "https://www.chess.com"]
[Date "2024.01.02"]
[Round "10"]
[White "Baules Rodriguez, Jorge Luis"]
[Black "Bjelobrk, Igor"]
[Result "0-1"]
[Board "76"]
[TimeControl "180+1"]
[WhiteFideId "6600247"]
[BlackFideId "4300726"]
[WhiteElo "2449"]
[BlackElo "2634"]
[WhiteTeam "PAN"]
[BlackTeam "AUS"]
[WhiteClock "0:00:17"]
[BlackClock "0:01:15"]

1. e4 {[%clk 0:03:00]}  e6 {[%clk 0:02:57]} 2. d4 {[%clk 0:02:57]}  d5 {[%clk 0:02:56]} 3. e5 {[%clk 0:02:56]}  c5 {[%clk 0:02:55]} 4. c3 {[%clk 0:02:56]}  Nc6 {[%clk 0:02:54]} 5. Nf3 {[%clk 0:02:56]}  Qb6 {[%clk 0:02:54]} 6. a3 {[%clk 0:02:52]}  c4 {[%clk 0:02:54]} 7. Nbd2 {[%clk 0:02:51]}  Na5 {[%clk 0:02:50]} 8. g3 {[%clk 0:02:45]}  Bd7 {[%clk 0:02:49]} 9. h4 {[%clk 0:02:44]}  Ne7 {[%clk 0:02:44]} 10. Bh3 {[%clk 0:02:42]}  h6 {[%clk 0:02:44]} 11. h5 {[%clk 0:02:41]}  Qc7 {[%clk 0:02:38]} 12. O-O {[%clk 0:02:39]}  O-O-O {[%clk 0:02:33]} 13. Ne1 {[%clk 0:02:06]}  g5 {[%clk 0:02:25]} 14. Ng2 {[%clk 0:01:58]}  Nf5 {[%clk 0:02:21]} 15. Ne3 {[%clk 0:01:54]}  Kb8 {[%clk 0:02:15]} 16. Qf3 {[%clk 0:01:39]}  Qc8 {[%clk 0:02:07]} 17. Rb1 {[%clk 0:01:26]}  Rg8 {[%clk 0:02:02]} 18. Bxf5 {[%clk 0:01:19]}  exf5 {[%clk 0:02:02]} 19. Qxd5 {[%clk 0:01:19]}  f4 {[%clk 0:01:51]} 20. Qxa5 {[%clk 0:01:17]}  fxe3 {[%clk 0:01:50]} 21. fxe3 {[%clk 0:01:18]}  Bc6 {[%clk 0:01:45]} 22. Rxf7 {[%clk 0:01:12]}  Rd5 {[%clk 0:01:38]} 23. Rxf8 {[%clk 0:00:51]}  Rxf8 {[%clk 0:01:34]} 24. Qb4 {[%clk 0:00:51]}  a5 {[%clk 0:01:33]} 25. Qe7 {[%clk 0:00:50]}  Qf5 {[%clk 0:01:27]} 26. Kh2 {[%clk 0:00:25]}  Rd7 {[%clk 0:01:23]} 27. Qc5 {[%clk 0:00:19]}  Qf2+ {[%clk 0:01:18]} 28. Kh3 {[%clk 0:00:17]}  Bg2+ {[%clk 0:01:15]} 0-1

[Event "January 2 Late 2024"]
[Site "https://www.chess.com"]
[Date "2024.01.02"]
[Round "10"]
[White "Caspi, Israel"]
[Black "ArchibaldCerveza29"]
[Result "1/2-1/2"]
[Board "79"]
[TimeControl "180+1"]
[WhiteFideId "2807394"]
[WhiteElo "2605"]
[BlackElo "2441"]
[WhiteTeam "ISR"]
[WhiteClock "0:00:46"]
[BlackClock "0:00:02"]

1. d4 {[%clk 0:03:00]}  d5 {[%clk 0:02:59]} 2. Bf4 {[%clk 0:02:57]}  c5 {[%clk 0:02:58]} 3. e3 {[%clk 0:02:58]}  Nc6 {[%clk 0:02:58]} 4. Nf3 {[%clk 0:02:58]}  Nf6 {[%clk 0:02:57]} 5. c3 {[%clk 0:02:57]}  g6 {[%clk 0:02:56]} 6. Nbd2 {[%clk 0:02:55]}  Bg7 {[%clk 0:02:51]} 7. dxc5 {[%clk 0:02:55]}  Nh5 {[%clk 0:02:50]} 8. Bg5 {[%clk 0:02:46]}  O-O {[%clk 0:02:44]} 9. Nb3 {[%clk 0:02:45]}  a5 {[%clk 0:02:42]} 10. a4 {[%clk 0:02:45]}  Qe8 {[%clk 0:02:35]} 11. Bb5 {[%clk 0:02:45]}  e5 {[%clk 0:02:34]} 12. Qxd5 {[%clk 0:02:43]}  Be6 {[%clk 0:02:32]} 13. Qd1 {[%clk 0:02:39]}  h6 {[%clk 0:02:32]} 14. Bh4 {[%clk 0:02:38]}  f5 {[%clk 0:02:30]} 15. Nfd2 {[%clk 0:02:36]}  g5 {[%clk 0:02:27]} 16. Bg3 {[%clk 0:02:35]}  f4 {[%clk 0:02:27]} 17. Bc4 {[%clk 0:02:33]}  fxg3 {[%clk 0:02:20]} 18. hxg3 {[%clk 0:02:33]}  Nf6 {[%clk 0:02:20]} 19. Qe2 {[%clk 0:02:28]}  Rd8 {[%clk 0:02:19]} 20. O-O-O {[%clk 0:02:25]}  e4 {[%clk 0:02:05]} 21. f3 {[%clk 0:02:23]}  Ne5 {[%clk 0:02:03]} 22. Bxe6+ {[%clk 0:02:20]}  Qxe6 {[%clk 0:02:04]} 23. Kb1 {[%clk 0:02:14]}  Qc6 {[%clk 0:01:44]} 24. Qb5 {[%clk 0:02:11]}  Nd5 {[%clk 0:01:24]} 25. Nxe4 {[%clk 0:02:08]}  Nxe3 {[%clk 0:01:20]} 26. Rxd8 {[%clk 0:02:07]}  Rxd8 {[%clk 0:01:21]} 27. Qxa5 {[%clk 0:02:08]}  Rf8 {[%clk 0:01:08]} 28. Nd4 {[%clk 0:02:07]}  Qd5 {[%clk 0:01:04]} 29. Rg1 {[%clk 0:01:58]}  N5c4 {[%clk 0:01:03]} 30. Qb4 {[%clk 0:01:40]}  Bxd4 {[%clk 0:00:44]} 31. cxd4 {[%clk 0:01:40]}  Qxd4 {[%clk 0:00:45]} 32. Qxb7 {[%clk 0:01:40]}  Nd1 {[%clk 0:00:31]} 33. Re1 {[%clk 0:01:18]}  Ndxb2 {[%clk 0:00:25]} 34. Qc6 {[%clk 0:01:04]}  Qd3+ {[%clk 0:00:23]} 35. Kc1 {[%clk 0:01:00]}  Kg7 {[%clk 0:00:05]} 36. Rh1 {[%clk 0:00:48]}  Qe3+ {[%clk 0:00:05]} 37. Kb1 {[%clk 0:00:46]}  Qd3+ {[%clk 0:00:05]} 38. Ka2 {[%clk 0:00:46]}  Qa3+ {[%clk 0:00:05]} 39. Kb1 {[%clk 0:00:47]}  Qd3+ {[%clk 0:00:05]} 40. Ka2 {[%clk 0:00:46]}  Qa3+ {[%clk 0:00:03]} 41. Kb1 {[%clk 0:00:46]}  Qd3+ {[%clk 0:00:02]} 1/2-1/2

[Event "January 2 Late 2024"]
[Site "https://www.chess.com"]
[Date "2024.01.02"]
[Round "10"]
[White "Gontcharov, Vladislav"]
[Black "Gabdushev, Ruslan"]
[Result "1-0"]
[Board "80"]
[TimeControl "180+1"]
[WhiteFideId "4123492"]
[BlackFideId "4137833"]
[WhiteElo "2582"]
[BlackElo "2435"]
[WhiteTeam "RUS"]
[BlackTeam "RUS"]
[WhiteClock "0:00:21"]
[BlackClock "0:00:00"]

1. d4 {[%clk 0:03:00]}  c6 {[%clk 0:02:59]} 2. Nf3 {[%clk 0:02:59]}  d6 {[%clk 0:02:57]} 3. c4 {[%clk 0:02:59]}  Bg4 {[%clk 0:02:52]} 4. e3 {[%clk 0:02:58]}  Nf6 {[%clk 0:02:50]} 5. Be2 {[%clk 0:02:58]}  Nbd7 {[%clk 0:02:49]} 6. Nc3 {[%clk 0:02:57]}  e5 {[%clk 0:02:48]} 7. O-O {[%clk 0:02:56]}  Be7 {[%clk 0:02:47]} 8. b3 {[%clk 0:02:49]}  O-O {[%clk 0:02:42]} 9. e4 {[%clk 0:02:49]}  Re8 {[%clk 0:02:35]} 10. Be3 {[%clk 0:02:47]}  Qc7 {[%clk 0:02:32]} 11. Rc1 {[%clk 0:02:43]}  Rad8 {[%clk 0:02:21]} 12. d5 {[%clk 0:02:41]}  Nf8 {[%clk 0:02:14]} 13. Ne1 {[%clk 0:02:35]}  Bc8 {[%clk 0:02:08]} 14. Nd3 {[%clk 0:02:35]}  Ng6 {[%clk 0:02:03]} 15. Qd2 {[%clk 0:02:25]}  c5 {[%clk 0:01:49]} 16. h3 {[%clk 0:02:22]}  a6 {[%clk 0:01:47]} 17. g4 {[%clk 0:02:21]}  h6 {[%clk 0:01:45]} 18. f4 {[%clk 0:02:16]}  exf4 {[%clk 0:01:43]} 19. Nxf4 {[%clk 0:02:17]}  Ne5 {[%clk 0:01:38]} 20. Rf2 {[%clk 0:02:09]}  Nh7 {[%clk 0:01:31]} 21. Rcf1 {[%clk 0:02:06]}  Bh4 {[%clk 0:01:30]} 22. Rg2 {[%clk 0:02:05]}  Ng5 {[%clk 0:01:28]} 23. Kh2 {[%clk 0:02:02]}  Qa5 {[%clk 0:01:17]} 24. Nh5 {[%clk 0:01:58]}  Ng6 {[%clk 0:01:10]} 25. Qc2 {[%clk 0:01:41]}  Re7 {[%clk 0:01:03]} 26. a4 {[%clk 0:01:31]}  Rde8 {[%clk 0:01:02]} 27. Bd3 {[%clk 0:01:30]}  Ne5 {[%clk 0:00:51]} 28. Bxg5 {[%clk 0:01:28]}  Bxg5 {[%clk 0:00:49]} 29. Ng3 {[%clk 0:01:27]}  Ng6 {[%clk 0:00:43]} 30. Nce2 {[%clk 0:01:21]}  Nh4 {[%clk 0:00:40]} 31. Rgf2 {[%clk 0:01:11]}  g6 {[%clk 0:00:40]} 32. Nf4 {[%clk 0:01:07]}  Qb4 {[%clk 0:00:30]} 33. Nge2 {[%clk 0:01:04]}  Kg7 {[%clk 0:00:25]} 34. Kg3 {[%clk 0:01:04]}  f6 {[%clk 0:00:20]} 35. Qb2 {[%clk 0:01:01]}  Re5 {[%clk 0:00:19]} 36. Bc2 {[%clk 0:01:00]}  b5 {[%clk 0:00:18]} 37. Nd3 {[%clk 0:00:59]}  Qa5 {[%clk 0:00:16]} 38. Nxe5 {[%clk 0:00:59]}  Rxe5 {[%clk 0:00:15]} 39. Bd3 {[%clk 0:00:59]}  Bd7 {[%clk 0:00:13]} 40. axb5 {[%clk 0:00:58]}  axb5 {[%clk 0:00:13]} 41. Ra1 {[%clk 0:00:58]}  Qb6 {[%clk 0:00:11]} 42. Qa3 {[%clk 0:00:58]}  Re7 {[%clk 0:00:06]} 43. Qa5 {[%clk 0:00:55]}  Qb8 {[%clk 0:00:05]} 44. Qa8 {[%clk 0:00:53]}  Qb6 {[%clk 0:00:05]} 45. Ra6 {[%clk 0:00:53]}  Qc7 {[%clk 0:00:04]} 46. Ra7 {[%clk 0:00:51]}  Qb6 {[%clk 0:00:04]} 47. Qb7 {[%clk 0:00:51]}  Qxb7 {[%clk 0:00:04]} 48. Rxb7 {[%clk 0:00:51]}  bxc4 {[%clk 0:00:04]} 49. bxc4 {[%clk 0:00:51]}  f5 {[%clk 0:00:03]} 50. gxf5 {[%clk 0:00:45]}  gxf5 {[%clk 0:00:00]} 51. Nc3 {[%clk 0:00:21]} 1-0

[Event "January 2 Late 2024"]
[Site "https://www.chess.com"]
[Date "2024.01.02"]
[Round "10"]
[White "Seletsky, Grigory"]
[Black "Aggelis, Nikolaos"]
[Result "0-1"]
[Board "81"]
[TimeControl "180+1"]
[WhiteFideId "14112191"]
[BlackFideId "4213220"]
[WhiteElo "2431"]
[BlackElo "2564"]
[WhiteTeam "UKR"]
[BlackTeam "GRE"]
[WhiteClock "0:00:12"]
[BlackClock "0:00:08"]

1. c3 {[%clk 0:02:59]}  d5 {[%clk 0:02:54]} 2. d4 {[%clk 0:02:58]}  Nf6 {[%clk 0:02:54]} 3. Bf4 {[%clk 0:02:58]}  Nh5 {[%clk 0:02:53]} 4. Be5 {[%clk 0:02:56]}  Nf6 {[%clk 0:02:50]} 5. e3 {[%clk 0:02:54]}  Nbd7 {[%clk 0:02:45]} 6. Bf4 {[%clk 0:02:53]}  Ne4 {[%clk 0:02:36]} 7. Nd2 {[%clk 0:02:52]}  Ndf6 {[%clk 0:02:35]} 8. Nxe4 {[%clk 0:02:48]}  Nxe4 {[%clk 0:02:35]} 9. Nf3 {[%clk 0:02:48]}  Bf5 {[%clk 0:02:25]} 10. Qb3 {[%clk 0:02:41]}  Rb8 {[%clk 0:02:11]} 11. Be2 {[%clk 0:02:36]}  e6 {[%clk 0:02:11]} 12. O-O {[%clk 0:02:36]}  Bd6 {[%clk 0:02:11]} 13. Bxd6 {[%clk 0:02:24]}  cxd6 {[%clk 0:02:09]} 14. Qa4+ {[%clk 0:02:19]}  Kf8 {[%clk 0:02:02]} 15. Qxa7 {[%clk 0:02:11]}  g5 {[%clk 0:02:02]} 16. Rfd1 {[%clk 0:01:57]}  h5 {[%clk 0:02:00]} 17. Qa4 {[%clk 0:01:53]}  h4 {[%clk 0:01:58]} 18. Nd2 {[%clk 0:01:48]}  Nxd2 {[%clk 0:01:43]} 19. Rxd2 {[%clk 0:01:47]}  g4 {[%clk 0:01:44]} 20. Bd3 {[%clk 0:01:46]}  Bxd3 {[%clk 0:01:38]} 21. Rxd3 {[%clk 0:01:45]}  Qg5 {[%clk 0:01:23]} 22. Qd1 {[%clk 0:01:38]}  Ke7 {[%clk 0:01:12]} 23. Qe2 {[%clk 0:01:37]}  f5 {[%clk 0:01:11]} 24. Rf1 {[%clk 0:01:34]}  b5 {[%clk 0:01:07]} 25. a3 {[%clk 0:01:29]}  Rbg8 {[%clk 0:01:06]} 26. Rd2 {[%clk 0:01:23]}  g3 {[%clk 0:01:00]} 27. fxg3 {[%clk 0:01:20]}  hxg3 {[%clk 0:01:01]} 28. h3 {[%clk 0:01:20]}  Rh4 {[%clk 0:00:55]} 29. Rf3 {[%clk 0:01:16]}  Re4 {[%clk 0:00:54]} 30. Qe1 {[%clk 0:00:46]}  Kd7 {[%clk 0:00:29]} 31. Re2 {[%clk 0:00:46]}  Kc6 {[%clk 0:00:29]} 32. Kf1 {[%clk 0:00:42]}  Qh6 {[%clk 0:00:20]} 33. Kg1 {[%clk 0:00:40]}  Qh4 {[%clk 0:00:15]} 34. Qf1 {[%clk 0:00:40]}  Qg5 {[%clk 0:00:13]} 35. Rf4 {[%clk 0:00:38]}  Rf8 {[%clk 0:00:08]} 36. Rxe4 {[%clk 0:00:28]}  dxe4 {[%clk 0:00:09]} 37. Qf4 {[%clk 0:00:25]}  Qxf4 {[%clk 0:00:09]} 38. exf4 {[%clk 0:00:25]}  Kd5 {[%clk 0:00:10]} 39. Re3 {[%clk 0:00:25]}  Rg8 {[%clk 0:00:10]} 40. b3 {[%clk 0:00:24]}  Rg7 {[%clk 0:00:08]} 41. Kf1 {[%clk 0:00:24]}  Ra7 {[%clk 0:00:08]} 42. Rxg3 {[%clk 0:00:23]}  Rxa3 {[%clk 0:00:09]} 43. c4+ {[%clk 0:00:21]}  Kxd4 {[%clk 0:00:08]} 44. cxb5 {[%clk 0:00:21]}  e3 {[%clk 0:00:08]} 45. Ke2 {[%clk 0:00:19]}  Ra2+ {[%clk 0:00:07]} 46. Ke1 {[%clk 0:00:12]}  Kd3 {[%clk 0:00:08]} 0-1

[Event "January 2 Late 2024"]
[Site "https://www.chess.com"]
[Date "2024.01.02"]
[Round "10"]
[White "Mazurkiewicz, Michal"]
[Black "Matta, Nicholas"]
[Result "1-0"]
[Board "82"]
[TimeControl "180+1"]
[WhiteFideId "1124943"]
[BlackFideId "30914523"]
[WhiteElo "2430"]
[BlackElo "2549"]
[WhiteTeam "POL"]
[BlackTeam "USA"]
[WhiteClock "0:00:11"]
[BlackClock "0:01:08"]

1. e4 {[%clk 0:03:00]}  g6 {[%clk 0:02:58]} 2. d4 {[%clk 0:02:59]}  Bg7 {[%clk 0:02:58]} 3. Nc3 {[%clk 0:03:00]}  d6 {[%clk 0:02:59]} 4. f4 {[%clk 0:03:00]}  Nf6 {[%clk 0:02:57]} 5. Nf3 {[%clk 0:02:58]}  O-O {[%clk 0:02:57]} 6. e5 {[%clk 0:02:58]}  dxe5 {[%clk 0:02:58]} 7. dxe5 {[%clk 0:02:56]}  Qxd1+ {[%clk 0:02:59]} 8. Nxd1 {[%clk 0:02:57]}  Nd5 {[%clk 0:02:55]} 9. a3 {[%clk 0:02:49]}  Bg4 {[%clk 0:02:47]} 10. c4 {[%clk 0:02:46]}  Bxf3 {[%clk 0:02:46]} 11. gxf3 {[%clk 0:02:46]}  Nb6 {[%clk 0:02:43]} 12. Nc3 {[%clk 0:02:46]}  Nc6 {[%clk 0:02:37]} 13. Be3 {[%clk 0:02:41]}  Rad8 {[%clk 0:02:37]} 14. c5 {[%clk 0:02:30]}  Nd5 {[%clk 0:02:24]} 15. Nxd5 {[%clk 0:02:15]}  Rxd5 {[%clk 0:02:24]} 16. Bc4 {[%clk 0:02:15]}  Rdd8 {[%clk 0:02:19]} 17. h4 {[%clk 0:01:11]}  Nd4 {[%clk 0:02:16]} 18. Kf2 {[%clk 0:01:10]}  Nc2 {[%clk 0:02:11]} 19. Rad1 {[%clk 0:01:09]}  e6 {[%clk 0:02:00]} 20. h5 {[%clk 0:00:54]}  gxh5 {[%clk 0:01:52]} 21. Bd3 {[%clk 0:00:39]}  Nxe3 {[%clk 0:01:45]} 22. Kxe3 {[%clk 0:00:40]}  f5 {[%clk 0:01:34]} 23. exf6 {[%clk 0:00:19]}  Bxf6 {[%clk 0:01:32]} 24. Rxh5 {[%clk 0:00:19]}  Bd4+ {[%clk 0:01:28]} 25. Ke2 {[%clk 0:00:18]}  Rf7 {[%clk 0:01:20]} 26. b4 {[%clk 0:00:15]}  Bb2 {[%clk 0:01:15]} 27. Bxh7+ {[%clk 0:00:12]}  Rxh7 {[%clk 0:01:07]} 28. Rxd8+ {[%clk 0:00:12]}  Kg7 {[%clk 0:01:08]} 29. Rd7+ {[%clk 0:00:12]}  Kg6 {[%clk 0:01:08]} 30. Rhxh7 {[%clk 0:00:11]} 1-0

[Event "January 2 Late 2024"]
[Site "https://www.chess.com"]
[Date "2024.01.02"]
[Round "10"]
[White "Przybylski, Wojciech"]
[Black "Alvarado, Carlos"]
[Result "1-0"]
[Board "84"]
[TimeControl "180+1"]
[WhiteFideId "1117599"]
[BlackFideId "3800555"]
[WhiteElo "2545"]
[BlackElo "2426"]
[WhiteTeam "POL"]
[BlackTeam "PER"]
[WhiteClock "0:00:02"]
[BlackClock "0:00:00"]

1. e4 {[%clk 0:03:00]}  c6 {[%clk 0:02:58]} 2. d4 {[%clk 0:02:59]}  d5 {[%clk 0:02:59]} 3. Nc3 {[%clk 0:03:00]}  dxe4 {[%clk 0:02:59]} 4. Nxe4 {[%clk 0:03:00]}  Nf6 {[%clk 0:03:00]} 5. Nxf6+ {[%clk 0:02:58]}  exf6 {[%clk 0:03:00]} 6. c3 {[%clk 0:02:57]}  Bd6 {[%clk 0:03:00]} 7. Bd3 {[%clk 0:02:58]}  Na6 {[%clk 0:03:00]} 8. Qc2 {[%clk 0:02:57]}  h6 {[%clk 0:02:58]} 9. Ne2 {[%clk 0:02:56]}  Nc7 {[%clk 0:02:58]} 10. O-O {[%clk 0:02:56]}  O-O {[%clk 0:02:58]} 11. Ng3 {[%clk 0:02:56]}  Nd5 {[%clk 0:02:56]} 12. Ne4 {[%clk 0:02:44]}  Bc7 {[%clk 0:02:51]} 13. Ng3 {[%clk 0:02:34]}  Re8 {[%clk 0:02:48]} 14. Bh7+ {[%clk 0:02:31]}  Kh8 {[%clk 0:02:45]} 15. Bf5 {[%clk 0:02:19]}  Bxg3 {[%clk 0:02:21]} 16. hxg3 {[%clk 0:02:17]}  Bxf5 {[%clk 0:02:19]} 17. Qxf5 {[%clk 0:02:17]}  Qc8 {[%clk 0:02:20]} 18. Qxc8 {[%clk 0:02:03]}  Raxc8 {[%clk 0:02:17]} 19. Bd2 {[%clk 0:02:03]}  Rcd8 {[%clk 0:02:05]} 20. Rfe1 {[%clk 0:02:01]}  Kg8 {[%clk 0:02:04]} 21. Kf1 {[%clk 0:02:01]}  f5 {[%clk 0:01:56]} 22. a4 {[%clk 0:01:57]}  g5 {[%clk 0:01:48]} 23. Re2 {[%clk 0:01:53]}  Rxe2 {[%clk 0:01:45]} 24. Kxe2 {[%clk 0:01:53]}  Re8+ {[%clk 0:01:45]} 25. Kd3 {[%clk 0:01:53]}  Nf6 {[%clk 0:01:43]} 26. b4 {[%clk 0:01:49]}  Ne4 {[%clk 0:01:38]} 27. Be1 {[%clk 0:01:49]}  a6 {[%clk 0:01:35]} 28. c4 {[%clk 0:01:48]}  Rd8 {[%clk 0:01:31]} 29. b5 {[%clk 0:01:43]}  Kh7 {[%clk 0:01:18]} 30. f3 {[%clk 0:01:32]}  Nc5+ {[%clk 0:01:16]} 31. Kc3 {[%clk 0:01:30]}  Ne6 {[%clk 0:01:15]} 32. Bf2 {[%clk 0:01:30]}  axb5 {[%clk 0:01:10]} 33. axb5 {[%clk 0:01:29]}  cxb5 {[%clk 0:01:10]} 34. cxb5 {[%clk 0:01:24]}  Nc7 {[%clk 0:01:10]} 35. Kc4 {[%clk 0:01:17]}  Rc8 {[%clk 0:01:05]} 36. Ra7 {[%clk 0:01:06]}  Ne6+ {[%clk 0:00:59]} 37. Kd3 {[%clk 0:01:05]}  Rc7 {[%clk 0:00:54]} 38. d5 {[%clk 0:01:01]}  Rd7 {[%clk 0:00:54]} 39. Kc4 {[%clk 0:00:57]}  Nf8 {[%clk 0:00:53]} 40. b6 {[%clk 0:00:54]}  Ng6 {[%clk 0:00:49]} 41. Bd4 {[%clk 0:00:53]}  h5 {[%clk 0:00:47]} 42. Bf6 {[%clk 0:00:37]}  f4 {[%clk 0:00:39]} 43. Bxg5 {[%clk 0:00:23]}  fxg3 {[%clk 0:00:38]} 44. Bf6 {[%clk 0:00:22]}  Nf4 {[%clk 0:00:36]} 45. Be5 {[%clk 0:00:21]}  Nxd5 {[%clk 0:00:32]} 46. Kc5 {[%clk 0:00:10]}  h4 {[%clk 0:00:28]} 47. Ra8 {[%clk 0:00:07]}  Kg6 {[%clk 0:00:20]} 48. Rg8+ {[%clk 0:00:06]}  Kf5 {[%clk 0:00:20]} 49. Bd6 {[%clk 0:00:06]}  Ne3 {[%clk 0:00:17]} 50. Rh8 {[%clk 0:00:06]}  Ke6 {[%clk 0:00:14]} 51. Rh6+ {[%clk 0:00:05]}  f6 {[%clk 0:00:13]} 52. Bc7 {[%clk 0:00:05]}  Nf5 {[%clk 0:00:12]} 53. Rh8 {[%clk 0:00:05]}  Rd2 {[%clk 0:00:10]} 54. Re8+ {[%clk 0:00:04]}  Kf7 {[%clk 0:00:11]} 55. Rb8 {[%clk 0:00:04]}  Rxg2 {[%clk 0:00:10]} 56. Rxb7 {[%clk 0:00:04]}  Rb2 {[%clk 0:00:09]} 57. Bxg3+ {[%clk 0:00:04]}  Kg6 {[%clk 0:00:08]} 58. Bf4 {[%clk 0:00:04]}  h3 {[%clk 0:00:07]} 59. Rb8 {[%clk 0:00:04]}  Ng7 {[%clk 0:00:04]} 60. Rh8 {[%clk 0:00:03]}  Ne6+ {[%clk 0:00:04]} 61. Kc6 {[%clk 0:00:03]}  Nxf4 {[%clk 0:00:05]} 62. b7 {[%clk 0:00:04]}  Rxb7 {[%clk 0:00:04]} 63. Kxb7 {[%clk 0:00:04]}  Kf5 {[%clk 0:00:04]} 64. Kc6 {[%clk 0:00:04]}  Ke5 {[%clk 0:00:04]} 65. Rh4 {[%clk 0:00:04]}  f5 {[%clk 0:00:03]} 66. Kc7 {[%clk 0:00:03]}  Nd5+ {[%clk 0:00:03]} 67. Kc6 {[%clk 0:00:03]}  f4 {[%clk 0:00:03]} 68. Kc5 {[%clk 0:00:03]}  Nf6 {[%clk 0:00:02]} 69. Rxh3 {[%clk 0:00:03]}  Kf5 {[%clk 0:00:01]} 70. Rh8 {[%clk 0:00:02]}  Kg5 {[%clk 0:00:02]} 71. Kd4 {[%clk 0:00:03]}  Nh5 {[%clk 0:00:02]} 72. Ke4 {[%clk 0:00:02]}  Ng3+ {[%clk 0:00:03]} 73. Ke5 {[%clk 0:00:02]}  Nh5 {[%clk 0:00:02]} 74. Rg8+ {[%clk 0:00:02]}  Kh4 {[%clk 0:00:03]} 75. Rg4+ {[%clk 0:00:02]}  Kh3 {[%clk 0:00:03]} 76. Ke4 {[%clk 0:00:02]}  Ng3+ {[%clk 0:00:02]} 77. Kxf4 {[%clk 0:00:02]}  Ne2+ {[%clk 0:00:02]} 78. Ke3 {[%clk 0:00:02]}  Nc3 {[%clk 0:00:02]} 79. Rg5 {[%clk 0:00:02]}  Kh4 {[%clk 0:00:02]} 80. Rc5 {[%clk 0:00:02]}  Nd1+ {[%clk 0:00:01]} 81. Ke2 {[%clk 0:00:02]}  Nb2 {[%clk 0:00:00]} 82. Rc3 {[%clk 0:00:02]} 1-0

[Event "January 2 Late 2024"]
[Site "https://www.chess.com"]
[Date "2024.01.02"]
[Round "10"]
[White "N_Mullodzhanov"]
[Black "Senft, Sean"]
[Result "1-0"]
[Board "85"]
[TimeControl "180+1"]
[BlackFideId "2044960"]
[WhiteElo "2516"]
[BlackElo "2426"]
[BlackTeam "USA"]
[WhiteClock "0:01:13"]
[BlackClock "0:01:55"]

1. e4 {[%clk 0:02:58]}  c5 {[%clk 0:02:57]} 2. c3 {[%clk 0:02:55]}  d5 {[%clk 0:02:57]} 3. exd5 {[%clk 0:02:55]}  Qxd5 {[%clk 0:02:58]} 4. d4 {[%clk 0:02:56]}  Nf6 {[%clk 0:02:58]} 5. Nf3 {[%clk 0:02:56]}  Bg4 {[%clk 0:02:59]} 6. Nbd2 {[%clk 0:02:52]}  e6 {[%clk 0:02:58]} 7. Bc4 {[%clk 0:02:52]}  Qd8 {[%clk 0:02:55]} 8. h3 {[%clk 0:02:51]}  Bh5 {[%clk 0:02:55]} 9. O-O {[%clk 0:02:50]}  Nc6 {[%clk 0:02:55]} 10. Nb3 {[%clk 0:02:48]}  cxd4 {[%clk 0:02:54]} 11. Nbxd4 {[%clk 0:02:48]}  Nxd4 {[%clk 0:02:52]} 12. Qxd4 {[%clk 0:02:40]}  Bxf3 {[%clk 0:02:43]} 13. Qxd8+ {[%clk 0:02:39]}  Rxd8 {[%clk 0:02:42]} 14. gxf3 {[%clk 0:02:39]}  Bc5 {[%clk 0:02:40]} 15. b4 {[%clk 0:02:38]}  Bb6 {[%clk 0:02:40]} 16. a4 {[%clk 0:02:38]}  Rc8 {[%clk 0:02:39]} 17. Bb5+ {[%clk 0:02:38]}  Ke7 {[%clk 0:02:40]} 18. a5 {[%clk 0:02:39]}  Bc7 {[%clk 0:02:37]} 19. Be3 {[%clk 0:02:38]}  Be5 {[%clk 0:02:37]} 20. Bc5+ {[%clk 0:02:36]}  Bd6 {[%clk 0:02:34]} 21. Bd4 {[%clk 0:02:32]}  e5 {[%clk 0:02:33]} 22. Rfe1 {[%clk 0:02:32]}  Nd5 {[%clk 0:02:31]} 23. Bxe5 {[%clk 0:01:58]}  Bxe5 {[%clk 0:02:31]} 24. Rxe5+ {[%clk 0:01:54]}  Kd6 {[%clk 0:02:31]} 25. Rf5 {[%clk 0:01:51]}  Nxc3 {[%clk 0:02:23]} 26. a6 {[%clk 0:01:49]}  b6 {[%clk 0:02:15]} 27. Bf1 {[%clk 0:01:43]}  f6 {[%clk 0:02:13]} 28. h4 {[%clk 0:01:38]}  Rhe8 {[%clk 0:02:09]} 29. Bh3 {[%clk 0:01:37]}  Rc7 {[%clk 0:02:07]} 30. Kh2 {[%clk 0:01:34]}  Re2 {[%clk 0:02:06]} 31. Kg3 {[%clk 0:01:31]}  Rb2 {[%clk 0:02:05]} 32. Re1 {[%clk 0:01:14]}  Rxb4 {[%clk 0:02:05]} 33. Rh5 {[%clk 0:01:14]}  h6 {[%clk 0:02:04]} 34. Re6+ {[%clk 0:01:14]}  Kd7 {[%clk 0:01:55]} 35. Rxb6+ {[%clk 0:01:13]} 1-0